fUST/lending_fUST_20260511
["ID","MTS","AMOUNT","RATE_DAILY","PERIOD"]
[422014358,1778467840000,-2288.89,0.00011232,2]
[422014367,1778467840000,-2138.15,0.00011232,2]
[422014357,1778467840000,-577.43,0.00011232,2]
[422014352,1778467840000,-518.59,0.00011232,2]
[422014368,1778467840000,-643.13,0.00011232,2]
[422014353,1778467840000,-1649.13,0.00011232,2]
[422014351,1778467840000,-500.0,0.00011232,2]
[422014349,1778467840000,-708.0,0.00011232,2]
[422014354,1778467840000,-12180.08,0.00011232,2]
[422014347,1778467840000,-1158.28,0.00011232,2]
[422014348,1778467840000,-500.0,0.00011232,2]
[422014350,1778467840000,-2121.33,0.00011232,2]
[422014446,1778467841000,-1649.13,0.00011506,2]
[422014440,1778467841000,-1158.28,0.00011506,2]
[422014437,1778467841000,-158.79449346,0.00011506,2]
[422014436,1778467841000,-551.17,0.00011506,2]
[422014428,1778467841000,-500.0,0.00011506,2]
[422014430,1778467841000,-500.0,0.00011506,2]
[422014433,1778467841000,-1188.17,0.00011506,2]
[422014431,1778467841000,-667.04,0.00011506,2]
[422014424,1778467841000,-540.48,0.00011506,2]
[422014426,1778467841000,-500.0,0.00011506,2]
[422014434,1778467841000,-500.0,0.00011506,2]
[422014447,1778467841000,-12180.08,0.00011506,2]
[422014442,1778467841000,-708.0,0.00011506,2]
[422014435,1778467841000,-733.19,0.00011506,2]
[422014439,1778467841000,-647.79,0.00011506,2]
[422014444,1778467841000,-323.90979536,0.00011506,2]
[422014441,1778467841000,-500.0,0.00011506,2]
[422014443,1778467841000,-2121.33,0.00011506,2]
[422014445,1778467841000,-518.59,0.00011506,2]
[422014448,1778467841000,-500.0,0.00011506,2]
[422014452,1778467841000,-1578.72,0.00011506,2]
[422014450,1778467841000,-577.43,0.00011506,2]
[422014451,1778467841000,-2288.89,0.00011506,2]
[422014449,1778467841000,-500.0,0.00011506,2]
[422014425,1778467841000,-500.0,0.00011506,2]
[422014459,1778467841000,-643.13,0.00011506,2]
[422014438,1778467841000,-500.0,0.00011506,2]
[422014427,1778467841000,-578.63,0.00011506,2]
[422014411,1778467841000,-500.0,0.00011506,2]
[422014432,1778467841000,-625.80139318,0.00011506,2]
[422014460,1778467841000,-500.0,0.00011506,2]
[422014396,1778467841000,-5153.67496,0.0001133,30]
[422014398,1778467841000,-232.98742752,0.00011356,2]
[422014407,1778467841000,-500.0,0.00011506,2]
[422014408,1778467841000,-500.0,0.00011506,2]
[422014397,1778467841000,-304.09077624,0.00011356,2]
[422014409,1778467841000,-200.03022773,0.00011506,2]
[422014402,1778467841000,-4739.0,0.00011376,2]
[422014399,1778467841000,-798.0,0.00011376,2]
[422014404,1778467841000,-151.0,0.000114,2]
[422014406,1778467841000,-1232.3818,0.00011506,2]
[422014401,1778467841000,-155.0,0.00011376,2]
[422014405,1778467841000,-151.0,0.000115,2]
[422014423,1778467841000,-500.0,0.00011506,2]
[422014400,1778467841000,-318.0,0.00011376,2]
[422014412,1778467841000,-172.03403397,0.00011506,2]
[422014418,1778467841000,-500.0,0.00011506,2]
[422014410,1778467841000,-500.0,0.00011506,2]
[422014413,1778467841000,-547.52,0.00011506,2]
[422014419,1778467841000,-500.0,0.00011506,2]
[422014416,1778467841000,-500.0,0.00011506,2]
[422014417,1778467841000,-500.0,0.00011506,2]
[422014414,1778467841000,-500.0,0.00011506,2]
[422014415,1778467841000,-500.0,0.00011506,2]
[422014420,1778467841000,-558.99,0.00011506,2]
[422014422,1778467841000,-500.0,0.00011506,2]
[422014421,1778467841000,-500.0,0.00011506,2]
[422014429,1778467841000,-243.479564,0.00011506,2]
[422014403,1778467841000,-453.23569037,0.00011385,2]
[422014456,1778467841000,-554.34,0.00011506,2]
[422014478,1778467841000,-2031.52270545,0.00011734,21]
[422014454,1778467841000,-2707.49,0.00011506,2]
[422014490,1778467841000,-500.0,0.0001178,2]
[422014489,1778467841000,-500.0,0.0001178,2]
[422014500,1778467841000,-578.63,0.0001178,2]
[422014498,1778467841000,-500.0,0.0001178,2]
[422014496,1778467841000,-524.34807194,0.0001178,2]
[422014493,1778467841000,-558.99,0.0001178,2]
[422014494,1778467841000,-500.0,0.0001178,2]
[422014492,1778467841000,-500.0,0.0001178,2]
[422014499,1778467841000,-500.0,0.0001178,2]
[422014497,1778467841000,-540.48,0.0001178,2]
[422014457,1778467841000,-1180.56,0.00011506,2]
[422014504,1778467841000,-1188.17,0.0001178,2]
[422014503,1778467841000,-667.04,0.0001178,2]
[422014509,1778467841000,-647.79,0.0001178,2]
[422014502,1778467841000,-500.0,0.0001178,2]
[422014508,1778467841000,-500.0,0.0001178,2]
[422014505,1778467841000,-500.0,0.0001178,2]
[422014511,1778467841000,-500.0,0.0001178,2]
[422014510,1778467841000,-1158.28,0.0001178,2]
[422014513,1778467841000,-1241.16582869,0.0001178,2]
[422014507,1778467841000,-551.17,0.0001178,2]
[422014512,1778467841000,-708.0,0.0001178,2]
[422014506,1778467841000,-733.19,0.0001178,2]
[422014517,1778467841000,-1619.52002267,0.0001178,2]
[422014516,1778467841000,-1649.13,0.0001178,2]
[422014515,1778467841000,-518.59,0.0001178,2]
[422014514,1778467841000,-880.16417131,0.0001178,2]
[422014495,1778467841000,-500.0,0.0001178,2]
[422014491,1778467841000,-500.0,0.0001178,2]
[422014501,1778467841000,-500.0,0.0001178,2]
[422014484,1778467841000,-500.0,0.0001178,2]
[422014488,1778467841000,-500.0,0.0001178,2]
[422014453,1778467841000,-572.58,0.00011506,2]
[422014458,1778467841000,-2138.15,0.00011506,2]
[422014474,1778467841000,-500.0,0.00011506,2]
[422014462,1778467841000,-1084.48,0.00011506,2]
[422014472,1778467841000,-500.0,0.00011506,2]
[422014473,1778467841000,-500.0,0.00011506,2]
[422014461,1778467841000,-500.0,0.00011506,2]
[422014465,1778467841000,-2441.4,0.00011506,2]
[422014464,1778467841000,-754.02,0.00011506,2]
[422014463,1778467841000,-781.82,0.00011506,2]
[422014471,1778467841000,-1146.0,0.00011506,2]
[422014467,1778467841000,-1660.25,0.00011506,2]
[422014466,1778467841000,-675.58,0.00011506,2]
[422014455,1778467841000,-611.02,0.00011506,2]
[422014470,1778467841000,-1875.7,0.00011506,2]
[422014469,1778467841000,-906.58,0.00011506,2]
[422014487,1778467841000,-187.5674088,0.0001178,2]
[422014485,1778467841000,-500.0,0.0001178,2]
[422014483,1778467841000,-500.0,0.0001178,2]
[422014481,1778467841000,-757.8223,0.0001178,2]
[422014482,1778467841000,-500.0,0.0001178,2]
[422014480,1778467841000,-499.69271805,0.0001176,2]
[422014486,1778467841000,-547.52,0.0001178,2]
[422014476,1778467841000,-931.94971009,0.00011591,2]
[422014475,1778467841000,-1562.0,0.00011507,2]
[422014477,1778467841000,-151.0,0.000117,2]
[422014468,1778467841000,-2463.12,0.00011506,2]
[422014479,1778467841000,-155.26,0.0001176,2]
[422014519,1778467842000,-399.98491839,0.00010958,2]
[422014518,1778467842000,-2403.70485075,0.0001178,2]
[422014521,1778467842000,-329.41116151,0.00011232,2]
[422014522,1778467842000,-170.58883849,0.00011232,2]
[422014520,1778467842000,-100.01508161,0.00010958,2]
[422014524,1778467842000,-500.0,0.00011506,2]
[422014525,1778467842000,-404.50002404,0.0001178,2]
[422014628,1778467843000,-572.58,0.0001178,2]
[422014655,1778467843000,-675.58,0.0001178,2]
[422014649,1778467843000,-781.82,0.0001178,2]
[422014653,1778467843000,-2441.4,0.0001178,2]
[422014656,1778467843000,-1660.25,0.0001178,2]
[422014634,1778467843000,-611.02,0.0001178,2]
[422014637,1778467843000,-1180.56,0.0001178,2]
[422014635,1778467843000,-554.34,0.0001178,2]
[422014626,1778467843000,-1578.72,0.0001178,2]
[422014599,1778467843000,-4537.29338595,0.0001178,2]
[422014630,1778467843000,-317.35942425,0.0001178,2]
[422014625,1778467843000,-1819.00116773,0.0001178,2]
[422014607,1778467843000,-577.43,0.0001178,2]
[422014609,1778467843000,-469.88883227,0.0001178,2]
[422014603,1778467843000,-500.0,0.0001178,2]
[422014605,1778467843000,-500.0,0.0001178,2]
[422014597,1778467843000,-443.0,0.00010924,2]
[422014601,1778467843000,-3215.06171659,0.0001178,2]
[422014632,1778467843000,-2390.13057575,0.0001178,2]
[422014651,1778467843000,-754.02,0.0001178,2]
[422014639,1778467843000,-2138.15,0.0001178,2]
[422014658,1778467843000,-2463.12,0.0001178,2]
[422014641,1778467843000,-643.13,0.0001178,2]
[422014691,1778467843000,-1795.05624195,0.00011992,2]
[422014689,1778467843000,-157.12,0.00011987,2]
[422014685,1778467843000,-151.0,0.000119,2]
[422014683,1778467843000,-156.27,0.00011879,2]
[422014687,1778467843000,-151.0,0.000119,2]
[422014679,1778467843000,-151.0,0.000118,2]
[422014681,1778467843000,-2096.88684771,0.00011827,2]
[422014675,1778467843000,-155.42,0.00011799,2]
[422014677,1778467843000,-151.0,0.000118,2]
[422014665,1778467843000,-1146.0,0.0001178,2]
[422014672,1778467843000,-500.0,0.0001178,2]
[422014647,1778467843000,-1084.48,0.0001178,2]
[422014644,1778467843000,-500.0,0.0001178,2]
[422014660,1778467843000,-906.58,0.0001178,2]
[422014674,1778467843000,-500.0,0.0001178,2]
[422014646,1778467843000,-500.0,0.0001178,2]
[422014666,1778467843000,-500.0,0.0001178,2]
[422014670,1778467843000,-500.0,0.0001178,2]
[422014663,1778467843000,-1875.7,0.0001178,2]
[422014930,1778467846000,-500.0,0.00012054,2]
[422014947,1778467846000,-1188.17,0.00012054,2]
[422014942,1778467846000,-500.0,0.00012054,2]
[422014940,1778467846000,-540.48,0.00012054,2]
[422014936,1778467846000,-500.0,0.00012054,2]
[422014932,1778467846000,-547.52,0.00012054,2]
[422014933,1778467846000,-500.0,0.00012054,2]
[422014929,1778467846000,-277.79864223,0.00012054,2]
[422014931,1778467846000,-500.0,0.00012054,2]
[422014925,1778467846000,-500.0,0.0001178,2]
[422014926,1778467846000,-17.88651952,0.00011992,2]
[422014928,1778467846000,-500.0,0.00012054,2]
[422014941,1778467846000,-500.0,0.00012054,2]
[422014935,1778467846000,-500.0,0.00012054,2]
[422014924,1778467846000,-500.0,0.00011506,2]
[422014922,1778467846000,-200.22254915,0.00010958,2]
[422014923,1778467846000,-500.0,0.00011232,2]
[422014921,1778467846000,-299.77745085,0.00010958,2]
[422014934,1778467846000,-500.0,0.00012054,2]
[422014937,1778467846000,-558.99,0.00012054,2]
[422014927,1778467846000,-800.0,0.00012,2]
[422014938,1778467846000,-500.0,0.00012054,2]
[422014944,1778467846000,-500.0,0.00012054,2]
[422014962,1778467846000,-577.43,0.00012054,2]
[422014963,1778467846000,-2288.89,0.00012054,2]
[422014960,1778467846000,-500.0,0.00012054,2]
[422014961,1778467846000,-500.0,0.00012054,2]
[422014957,1778467846000,-518.59,0.00012054,2]
[422014959,1778467846000,-12180.08,0.00012054,2]
[422014953,1778467846000,-1158.28,0.00012054,2]
[422014954,1778467846000,-343.78405955,0.00012054,2]
[422014950,1778467846000,-551.17,0.00012054,2]
[422014956,1778467846000,-2121.33,0.00012054,2]
[422014948,1778467846000,-500.0,0.00012054,2]
[422014951,1778467846000,-500.0,0.00012054,2]
[422014952,1778467846000,-647.79,0.00012054,2]
[422014958,1778467846000,-1649.13,0.00012054,2]
[422014949,1778467846000,-733.19,0.00012054,2]
[422014945,1778467846000,-500.0,0.00012054,2]
[422014943,1778467846000,-578.63,0.00012054,2]
[422014939,1778467846000,-500.0,0.00012054,2]
[422014955,1778467846000,-708.0,0.00012054,2]
[422014946,1778467846000,-667.04,0.00012054,2]
[422014991,1778467847000,-132.49579915,0.00012055,2]
[422014973,1778467847000,-500.0,0.00012054,2]
[422014971,1778467847000,-643.13,0.00012054,2]
[422014981,1778467847000,-750.73048164,0.00012054,2]
[422014983,1778467847000,-1875.7,0.00012054,2]
[422014985,1778467847000,-16.4858978,0.00012054,2]
[422014988,1778467847000,-500.0,0.00012054,2]
[422014989,1778467847000,-500.0,0.00012054,2]
[422014986,1778467847000,-180.20339173,0.00012054,2]
[422014987,1778467847000,-500.0,0.00012054,2]
[422014994,1778467847000,-152.0,0.00012094,30]
[422014978,1778467847000,-1660.25,0.00012054,2]
[422014984,1778467847000,-1129.5141022,0.00012054,2]
[422014979,1778467847000,-675.58,0.00012054,2]
[422014965,1778467847000,-572.58,0.00012054,2]
[422014977,1778467847000,-2441.4,0.00012054,2]
[422014975,1778467847000,-781.82,0.00012054,2]
[422014980,1778467847000,-1712.38951836,0.00012054,2]
[422014976,1778467847000,-754.02,0.00012054,2]
[422014974,1778467847000,-1084.48,0.00012054,2]
[422014972,1778467847000,-500.0,0.00012054,2]
[422014970,1778467847000,-2138.15,0.00012054,2]
[422014969,1778467847000,-1180.56,0.00012054,2]
[422014966,1778467847000,-2707.49,0.00012054,2]
[422014968,1778467847000,-554.34,0.00012054,2]
[422014964,1778467847000,-1578.72,0.00012054,2]
[422014967,1778467847000,-611.02,0.00012054,2]
[422014992,1778467847000,-1429.50420085,0.00012055,2]
[422014982,1778467847000,-906.58,0.00012054,2]
[422014993,1778467847000,-3727.79884037,0.00012062,2]
[422015010,1778467847000,-500.0,0.00012328,2]
[422014996,1778467847000,-158.05,0.0001212,2]
[422015021,1778467847000,-500.0,0.00012328,2]
[422015024,1778467847000,-110.08960608,0.00012328,2]
[422015023,1778467847000,-1188.17,0.00012328,2]
[422015022,1778467847000,-667.04,0.00012328,2]
[422015019,1778467847000,-578.63,0.00012328,2]
[422014990,1778467847000,-500.0,0.00012054,2]
[422015016,1778467847000,-540.48,0.00012328,2]
[422015015,1778467847000,-500.0,0.00012328,2]
[422015017,1778467847000,-500.0,0.00012328,2]
[422015014,1778467847000,-500.0,0.00012328,2]
[422015018,1778467847000,-500.0,0.00012328,2]
[422015009,1778467847000,-500.0,0.00012328,2]
[422015011,1778467847000,-500.0,0.00012328,2]
[422015013,1778467847000,-558.99,0.00012328,2]
[422015020,1778467847000,-500.0,0.00012328,2]
[422015012,1778467847000,-500.0,0.00012328,2]
[422015007,1778467847000,-500.0,0.00012328,2]
[422014995,1778467847000,-151.0,0.000121,2]
[422014999,1778467847000,-720.0,0.00012171,2]
[422015006,1778467847000,-500.0,0.00012328,2]
[422014997,1778467847000,-184.39798075,0.00012121,21]
[422015000,1778467847000,-151.0,0.000122,2]
[422014998,1778467847000,-159.08,0.00012132,2]
[422015004,1778467847000,-5824.68568808,0.00012297,2]
[422015003,1778467847000,-5012.93922749,0.00012289,2]
[422015005,1778467847000,-500.0,0.00012328,2]
[422015002,1778467847000,-5039.9505623,0.00012279,2]
[422015008,1778467847000,-547.52,0.00012328,2]
[422015001,1778467847000,-156.93969147,0.00012218,2]
[422015039,1778468604000,264.16823781,0.00019178,120]
[422015256,1778469038000,-2444.8415204,7.827e-05,2]
[422015255,1778469038000,-737.6184796,7.749e-05,2]
[422015293,1778469040000,-267.17334595,8.397e-05,2]
[422015295,1778469040000,-300.0,8.564e-05,2]
[422015297,1778469040000,-300.0,8.564e-05,2]
[422015296,1778469040000,-300.0,8.564e-05,2]
[422015298,1778469040000,-300.0,8.564e-05,2]
[422015294,1778469040000,-152.0,8.5e-05,7]
[422015292,1778469040000,-225.1811843,8.397e-05,2]
[422015283,1778469040000,-366.42366357,8.397e-05,2]
[422015287,1778469040000,-325.34525217,8.397e-05,2]
[422015285,1778469040000,-133.57633643,8.397e-05,2]
[422015281,1778469040000,-500.0,8.397e-05,2]
[422015279,1778469040000,-358.32484511,8.108e-05,2]
[422015277,1778469040000,-2555.1584796,7.827e-05,2]
[422015300,1778469040000,-107.1574164,8.564e-05,2]
[422015290,1778469040000,-174.65474783,8.397e-05,2]
[422015299,1778469040000,-300.0,8.564e-05,2]
[422015291,1778469040000,-274.8188157,8.397e-05,2]
[422015301,1778469040000,-192.8425836,8.564e-05,2]
[422015302,1778469040000,-300.0,8.564e-05,2]
[422015325,1778469040000,-138.9614991,8.968e-05,2]
[422015323,1778469040000,-715.9244206,8.868e-05,2]
[422015322,1778469040000,-359.00446991,8.668e-05,2]
[422015321,1778469040000,-1308.09865356,8.668e-05,2]
[422015316,1778469040000,-141.56203961,8.564e-05,2]
[422015324,1778469040000,-2127.62214396,8.868e-05,2]
[422015317,1778469040000,-300.0,8.564e-05,2]
[422015312,1778469040000,-300.0,8.564e-05,2]
[422015309,1778469040000,-219.32739382,8.564e-05,2]
[422015307,1778469040000,-80.67260618,8.564e-05,2]
[422015320,1778469040000,-858.04878061,8.568e-05,2]
[422015318,1778469040000,-300.0,8.564e-05,2]
[422015319,1778469040000,-300.0,8.564e-05,2]
[422015303,1778469040000,-300.0,8.564e-05,2]
[422015305,1778469040000,-300.0,8.564e-05,2]
[422015314,1778469040000,-158.43796039,8.564e-05,2]
[422015345,1778469043000,-851.75841307,9.468e-05,2]
[422015339,1778469043000,-251.11704093,8.968e-05,2]
[422015340,1778469043000,-2895.13326918,8.968e-05,2]
[422015341,1778469043000,-3365.30833181,9.068e-05,2]
[422015343,1778469043000,-216.47602862,9.425e-05,2]
[422015346,1778469043000,-380.183,9.468e-05,2]
[422015347,1778469043000,-1749.18367943,9.468e-05,2]
[422015342,1778469043000,-4408.83186662,9.368e-05,2]
[422015349,1778469043000,-1527.00186419,9.568e-05,2]
[422015348,1778469043000,-1922.19540244,9.468e-05,2]
[422015353,1778469043000,-3856.24050426,9.668e-05,2]
[422015352,1778469043000,-1596.40823017,9.668e-05,2]
[422015354,1778469043000,-3667.78176529,9.768e-05,2]
[422015350,1778469043000,-2907.15669367,9.568e-05,2]
[422015344,1778469043000,-600.0,9.451e-05,2]
[422015351,1778469043000,-496.43507616,9.568e-05,2]
[422015369,1778469046000,-5000.0,8.478e-05,2]
[422015370,1778469046000,-173.0,9.768e-05,2]
[422015389,1778469047000,-151.0,0.00010518,2]
[422015399,1778469047000,-572.1504102,0.00010958,2]
[422015394,1778469047000,-500.0,0.00010958,2]
[422015393,1778469047000,-500.0,0.00010958,2]
[422015391,1778469047000,-152.0,0.00010751,2]
[422015392,1778469047000,-1384.693,0.00010958,2]
[422015390,1778469047000,-7442.94408021,0.00010644,2]
[422015388,1778469047000,-720.0,0.00010396,2]
[422015383,1778469047000,-6964.20552914,0.00010268,2]
[422015384,1778469047000,-160.0,0.00010273,2]
[422015385,1778469047000,-160.0,0.00010273,2]
[422015377,1778469047000,-422.82331723,0.00010108,2]
[422015379,1778469047000,-500.0,0.00010267,2]
[422015375,1778469047000,-565.87490415,0.0001,2]
[422015380,1778469047000,-500.0,0.00010267,2]
[422015387,1778469047000,-160.0,0.00010273,2]
[422015386,1778469047000,-161.621689,0.00010273,2]
[422015376,1778469047000,-6485.46697807,0.00010068,2]
[422015373,1778469047000,-5974.43936636,9.868e-05,2]
[422015374,1778469047000,-6234.81737965,9.968e-05,2]
[422015371,1778469047000,-1678.95458168,9.768e-05,2]
[422015372,1778469047000,-32015.70106168,9.868e-05,2]
[422015381,1778469047000,-152.24512651,0.00010267,2]
[422015396,1778469047000,-500.0,0.00010958,2]
[422015378,1778469047000,-160.0,0.00010211,2]
[422015397,1778469047000,-500.0,0.00010958,2]
[422015398,1778469047000,-500.0,0.00010958,2]
[422015421,1778469047000,-1187.59687379,0.00010958,2]
[422015416,1778469047000,-554.81,0.00010958,2]
[422015420,1778469047000,-500.0,0.00010958,2]
[422015414,1778469047000,-916.97,0.00010958,2]
[422015418,1778469047000,-500.0,0.00010958,2]
[422015417,1778469047000,-1846.05,0.00010958,2]
[422015419,1778469047000,-1329.83,0.00010958,2]
[422015415,1778469047000,-560.5,0.00010958,2]
[422015413,1778469047000,-500.0,0.00010958,2]
[422015407,1778469047000,-500.0,0.00010958,2]
[422015408,1778469047000,-500.0,0.00010958,2]
[422015405,1778469047000,-500.0,0.00010958,2]
[422015395,1778469047000,-500.0,0.00010958,2]
[422015412,1778469047000,-500.0,0.00010958,2]
[422015401,1778469047000,-500.0,0.00010958,2]
[422015409,1778469047000,-500.0,0.00010958,2]
[422015402,1778469047000,-500.0,0.00010958,2]
[422015411,1778469047000,-512.83,0.00010958,2]
[422015400,1778469047000,-500.0,0.00010958,2]
[422015406,1778469047000,-500.0,0.00010958,2]
[422015410,1778469047000,-500.0,0.00010958,2]
[422015404,1778469047000,-500.0,0.00010958,2]
[422015403,1778469047000,-500.0,0.00010958,2]
[422015500,1778470232000,-330.4100157,8.262e-05,2]
[422015496,1778470232000,-3307.58296837,8.262e-05,2]
[422015494,1778470232000,-3645.86752267,8.179e-05,2]
[422015726,1778470240000,-1362.00701593,8.262e-05,2]
[422015730,1778470240000,-152.0,8.496e-05,7]
[422015728,1778470240000,-363.15123687,8.387e-05,2]
[422015734,1778470240000,-300.0,0.00010233,2]
[422015732,1778470240000,-152.0,8.496e-05,7]
[422015736,1778470240000,-356.24669695,0.00010234,2]
[422015852,1778470241000,-453.0,0.00010234,2]
[422015854,1778470241000,-3585.36740699,0.00010234,2]
[422015931,1778470242000,-1215.14674186,0.00010879,2]
[422015951,1778470242000,-151.0,0.00010951,2]
[422015948,1778470242000,-151.0,0.00010951,2]
[422015950,1778470242000,-151.0,0.00010951,2]
[422015946,1778470242000,-151.0,0.00010951,2]
[422015942,1778470242000,-519.85581591,0.00010951,2]
[422015940,1778470242000,-163.75281049,0.00010951,2]
[422015939,1778470242000,-301.97,0.00010932,2]
[422015937,1778470242000,-327.02752236,0.00010918,2]
[422015935,1778470242000,-557.5788265,0.00010903,2]
[422015933,1778470242000,-8379.15984345,0.00010879,2]
[422015979,1778470242000,-1221.17542886,0.00010957,2]
[422015955,1778470242000,-248.72907693,0.00010951,2]
[422015959,1778470242000,-1221.17542886,0.00010957,2]
[422015957,1778470242000,-567.00931056,0.00010957,2]
[422015961,1778470242000,-1221.17542886,0.00010957,2]
[422015969,1778470242000,-1221.17542886,0.00010957,2]
[422015971,1778470242000,-1221.17542886,0.00010957,2]
[422015973,1778470242000,-1221.17542886,0.00010957,2]
[422015975,1778470242000,-1221.17542886,0.00010957,2]
[422015965,1778470242000,-1221.17542886,0.00010957,2]
[422015977,1778470242000,-1221.17542886,0.00010957,2]
[422015968,1778470242000,-1221.17542886,0.00010957,2]
[422015964,1778470242000,-1221.17542886,0.00010957,2]
[422015983,1778470242000,-1221.17542886,0.00010957,2]
[422015981,1778470242000,-1221.17542886,0.00010957,2]
[422015872,1778470242000,-28458.45878246,0.00010234,2]
[422015929,1778470242000,-327.02752238,0.00010857,2]
[422015881,1778470242000,-160.0,0.00010293,2]
[422015925,1778470242000,-151.0,0.00010848,2]
[422015874,1778470242000,-1188.0815804,0.00010234,2]
[422015876,1778470242000,-12280.0385565,0.00010234,2]
[422015879,1778470242000,-160.0,0.00010293,2]
[422015878,1778470242000,-160.0,0.00010239,2]
[422015893,1778470242000,-151.0,0.00010848,2]
[422015892,1778470242000,-151.0,0.00010848,2]
[422015899,1778470242000,-151.0,0.00010848,2]
[422015897,1778470242000,-151.0,0.00010848,2]
[422015883,1778470242000,-160.0,0.00010293,2]
[422015888,1778470242000,-428.51845951,0.00010387,2]
[422015885,1778470242000,-161.621689,0.00010293,2]
[422015895,1778470242000,-151.0,0.00010848,2]
[422015927,1778470242000,-153.9110588,0.00010848,2]
[422015890,1778470242000,-537.6845,0.00010848,2]
[422015903,1778470242000,-151.0,0.00010848,2]
[422015905,1778470242000,-151.0,0.00010848,2]
[422015909,1778470242000,-151.0,0.00010848,2]
[422015907,1778470242000,-151.0,0.00010848,2]
[422015910,1778470242000,-151.0,0.00010848,2]
[422015918,1778470242000,-151.0,0.00010848,2]
[422015912,1778470242000,-151.0,0.00010848,2]
[422015916,1778470242000,-151.0,0.00010848,2]
[422015914,1778470242000,-151.0,0.00010848,2]
[422015923,1778470242000,-151.0,0.00010848,2]
[422015921,1778470242000,-151.0,0.00010848,2]
[422015920,1778470242000,-151.0,0.00010848,2]
[422015901,1778470242000,-151.0,0.00010848,2]
[422015985,1778470242000,-1221.17542886,0.00010957,2]
[422015944,1778470242000,-151.0,0.00010951,2]
[422015989,1778470242000,-1221.17542886,0.00010957,2]
[422016073,1778470242000,-500.0,0.00010958,2]
[422016058,1778470242000,-500.0,0.00010958,2]
[422016060,1778470242000,-500.0,0.00010958,2]
[422016067,1778470242000,-500.0,0.00010958,2]
[422016063,1778470242000,-500.0,0.00010958,2]
[422016065,1778470242000,-217.68901601,0.00010958,2]
[422016068,1778470242000,-500.0,0.00010958,2]
[422016077,1778470242000,-500.0,0.00010958,2]
[422016079,1778470242000,-500.0,0.00010958,2]
[422016081,1778470242000,-500.0,0.00010958,2]
[422016086,1778470242000,-500.0,0.00010958,2]
[422016088,1778470242000,-500.0,0.00010958,2]
[422016090,1778470242000,-500.0,0.00010958,2]
[422016094,1778470242000,-500.0,0.00010958,2]
[422016083,1778470242000,-500.0,0.00010958,2]
[422016092,1778470242000,-500.0,0.00010958,2]
[422016098,1778470242000,-500.0,0.00010958,2]
[422016100,1778470242000,-500.0,0.00010958,2]
[422016096,1778470242000,-306.93678641,0.00010958,2]
[422016102,1778470242000,-500.0,0.00010958,2]
[422016106,1778470242000,-500.0,0.00010958,2]
[422016104,1778470242000,-500.0,0.00010958,2]
[422016110,1778470242000,-500.0,0.00010958,2]
[422016108,1778470242000,-500.0,0.00010958,2]
[422016112,1778470242000,-500.0,0.00010958,2]
[422016114,1778470242000,-500.0,0.00010958,2]
[422015993,1778470242000,-1298.88659252,0.00010957,2]
[422016075,1778470242000,-500.0,0.00010958,2]
[422016070,1778470242000,-500.0,0.00010958,2]
[422015954,1778470242000,-151.0,0.00010951,2]
[422016045,1778470242000,-500.0,0.00010958,2]
[422016047,1778470242000,-500.0,0.00010958,2]
[422015999,1778470242000,-1298.88659252,0.00010957,2]
[422015987,1778470242000,-1221.17542886,0.00010957,2]
[422015995,1778470242000,-1298.88659252,0.00010957,2]
[422015991,1778470242000,-1298.88659252,0.00010957,2]